Workbook

Sheet Innholdsfortegnelse
A1: Pilar 3 - Vedlegg | E1: Oppdatert for 4. kvartal 2012
A2: Arkfane | B2: Innhold | C2: Side i Pilar 3 | D2: Oppdateres
A4: 1 | B4: Konsolidering - datterselskap | C4: 12 | D4: Kvartalsvis
A5: 2 | B5: Investering i tilknyttede selskaper og felleskontrollert virksomhet | C5: 13 | D5: Kvartalsvis
A6: 3 | B6: Ansvarlig kapital i andre finansinstitusjoner | C6: 13 | D6: Kvartalsvis
A7: 4 | B7: Ansvarlig kapital | C7: 15 | D7: Kvartalsvis
A8: 5 | B8: Minimumskravet til ansvarlig kapital for kredittrisiko fordelt på engasjementskategorier og underkategorier | C8: 16 | D8: Kvartalsvis
A9: 6 | B9: Minimumskravet til ansvarlig kapital for markedsrisiko | C9: 16 | D9: Kvartalsvis
A10: 7 | B10: Minimumskravet til ansvarlig kapital for operasjonell risiko | C10: 17 | D10: Kvartalsvis
A11: 8 | B11: Ansvarlig lånekapital og fondsobligasjon | C11: 17 | D11: Årlig
A12: 9 | B12: Engasjementsbeløp for hver engasjementstype fordelt på geografiske områder før fradrag for nedskrivninger. | C12: 22 | D12: Årlig
A13: 10 | B13: Samlet engasjementsbeløp etter eventuell nedskrivning og uten hensyn til eventuell sikkerhetsstillelse og engasjementenes gjennomsnittlige størrelse i løpet av perioden, oppdelt i engasjementstyper | C13: 22 | D13: Årlig
A14: 11 | B14: Engasjementsbeløp for hver engasjementstype fordelt på bransjer før fradrag for nedskrivninger | C14: 23 | D14: Årlig
A15: 12 | B15: Engasjementsbeløp for hver engasjementstype fordelt etter gjenstående løpetid | C15: 23 | D15: Årlig
A16: 13 | B16: Misligholdte og tapsutsatte engasjement fordelt på kundegrupper | C16: 24 | D16: Årlig
A17: 14 | B17: Faktiske tap pr. misligholdsklasse i perioden | C17: 24 | D17: Årlig
A18: 15 | B18: Separat angivelse av de samlede engasjementsbeløp med verdifall og misligholdte engasjementer fordelt på geografiske områder, herunder samlede verdiendringer og nedskrivninger | C18: 25 | D18: Årlig
A19: 16 | B19: Avstemming av endringer i henholdsvis verdiendringer og nedskrivinger for engasjementer med verdifall | C19: 25 | D19: Årlig
A20: 17 | B20: Fordeling på risikoklasser der IRB-metoden benyttes | C20: 26 | D20: Årlig
A21: 18 | B21: IRB Misligholdsnivå - PD og DR | C21: 28 | D21: Årlig
A22: 19 | B22: Tapsgrad for misligholdte lån - LGD | C22: 28 | D22: Årlig
A23: 20 | B23: Samlet engasjementsbeløp og andelen som er sikret med pant, fordelt på engasjementskategorier (IRB) | C23: 28 | D23: Årlig
A24: 21 | B24: De faktiske verdiendringene for den enkelte engasjementskategori og utvikling fra tidligere perioder (IRB) | C24: 29 | D24: Årlig
A25: 22 | B25: Investeringer (egenkapitalposisjoner utenfor handelsportefølje) fordelt etter formål | C25: 33 | D25: Årlig
A26: 23 | B26: Oversikt over bokført verdi og virkelig verdi, gevinster og tap | C26: 33 | D26: Årlig
A27: 24 | B27: Oversikt over type og verdi av børsnoterte aksjer, unoterte aksjer i diversifiserte porteføljer og andre engasjementer | C27: 34 | D27: Årlig
A28: 25 | B28: Oversikt over motpartsrisiko for derivater mv. utenfor handelsporteføljen | C28: 34 | D28: Årlig
A29: 26 | B29: Sensitivitet på netto rentekost før skatt (renteendring på ett prosentpoeng) | C29: 34 | D29: Årlig

Sheet 1
A2: Konsolideringsgrunnlag
A3: (beløp i tusen kroner)
A5: Datterselskap
A6: Pr 31.12.2012 | B6: Antall aksjer | C6: Bokført verdi | D6: Stemmerett | E6: Konsoliderings metode
A7: Selskaper som er fullt konsolidert
A8: SpareBank 1 SR-Finans AS | B8: 334000 | C8: 485566 | D8: 1 | E8: Oppkjøpsmetoden
A9: EiendomsMegler 1 SR-Eiendom AS | B9: 150 | C9: 97205 | D9: 1 | E9: Oppkjøpsmetoden
A10: Westbroker Finans AS | B10: 100 | C10: 0 | D10: 1 | E10: Oppkjøpsmetoden
A11: SR-Investering AS | B11: 3500 | C11: 178191 | D11: 1 | E11: Oppkjøpsmetoden
A12: SR-Forvaltning AS | B12: 6000 | C12: 29019 | D12: 1 | E12: Oppkjøpsmetoden
A13: SR-Forretningsservice AS | B13: 1000 | C13: 125 | D13: 1 | E13: Oppkjøpsmetoden
A14: Kvinnherad Sparebank Eigedom | B14: 3000 | C14: 15061 | D14: 1 | E14: Oppkjøpsmetoden
A15: Rygir Industrier AS konsern | B15: 69938739 | C15: 3238 | D15: 1 | E15: Oppkjøpsmetoden
A16: Etis Eiendom AS | B16: 10000 | C16: 115 | D16: 1 | E16: Oppkjøpsmetoden
A17: Sum | C17: =SUM(C8:C16) -> 808520
A22: Pr 31.12.2011
A23: Selskaper som er fullt konsolidert
A24: SpareBank 1 SR-Finans AS | B24: 334000 | C24: 439566 | D24: 1 | E24: Oppkjøpsmetoden
A25: EiendomsMegler 1 SR-Eiendom AS | B25: 150 | C25: 56885 | D25: 1 | E25: Oppkjøpsmetoden
A26: Westbroker Finans AS | B26: 100 | C26: 0 | D26: 1 | E26: Oppkjøpsmetoden
A27: SR-Investering AS | B27: 3500 | C27: 175527 | D27: 1 | E27: Oppkjøpsmetoden
A28: SR-Forvaltning AS | B28: 6000 | C28: 29019 | D28: 1 | E28: Oppkjøpsmetoden
A29: SR-Forretningsservice AS | B29: 1000 | C29: 125 | D29: 1 | E29: Oppkjøpsmetoden
A30: Kvinnherad Sparebank Eigedom | B30: 3000 | C30: 15061 | D30: 1 | E30: Oppkjøpsmetoden
A31: Sum | C31: =SUM(C24:C30) -> 716183
A33: Konsolideringsmetode er lik for regnskapsformål og kapitaldekningsformål.
A35: Datterselskap som rapporterer etter standardmetode
A36: SR-Finans AS
A38: Beløp i mill kroner | B38: 2012-12-31 | C38: 2011-12-31
A39: Netto ansvarlig kapital | B39: 596 | C39: 542
A40: Minimumskrav ansvarlig kapital | B40: 431 | C40: 392
A41: Kapitaldekning % | B41: 11.07 | C41: 11.06

Sheet 2
A1: Investeringer i tilknyttede selskaper
A2: Investeringer i tilknyttede selskaper blir bokført etter egenkapitalmetoden i konsernet og etter oppkjøpsmetoden i morbanken.
A3: Investeringene blir behandlet likt for kapitaldekningsformål bortsett fra konsernets investeringer i
A4: SpareBank 1 Boligkreditt AS og i SpareBank 1 Næringskreditt AS. I konsernets kapitaldekning foretas en
A5: forholdsmessig konsolidering.
A8: Investeringer i felleskontrollert virksomhet
A9: Investeringer i felleskontrollert virksomhet blir bokført etter egenkapitalmetoden i konsernet. I konsernets kapitaldekning går den
A10: bokførte verdien av investeringene i SpareBank 1 Gruppen AS og Bank 1 Oslo AS til fradrag i ansvarlig kapital og i beregningsgrunnlaget.
A11: Når det gjelder investeringen i BN Bank ASA foretas en forholdsmessig konsolidering i konsernets kapitaldekning.
A12: I SpareBank 1 SR-Bank blir investeringene bokført etter oppkjøpsmetoden. Den del av bokført verdi av investeringene i
A13: SpareBank 1 Gruppen AS og Bank 1 Oslo AS som overstiger 2 % av SpareBank 1 Gruppen sin og Bank 1 Oslo sin ansvarlige kapital
A14: går til fradrag i ansvarlig kapital og i beregningsgrunnlaget.
A17: Investeringer i tilknyttede selskaper og felleskontrollert virksomhet
A19: Beløp i tusen kroner | B19: Eierandel i prosent 31.12.2012 | C19: Kapitalkrav 1) 31.12.2012 | D19: Kapitaldekning i prosent 31.12.2012 | E19: Eierandel i prosent 31.12.2011 | F19: Kapitalkrav 1) 31.12.2011 | G19: Kapitaldekning i prosent 31.12.2011
A20: SpareBank 1 Boligkreditt AS | B20: 29.89 | C20: 1713 | D20: 10.46 | E20: 34.4 | F20: 1553 | G20: 9.83
A21: SpareBank 1 Næringskreditt AS | B21: 27.77 | C21: 235 | D21: 12.32 | E21: 30.71 | F21: 212 | G21: 13.67
A22: BN Bank ASA | B22: 23.5 | C22: 581 | D22: 15.08 | E22: 23.5 | F22: 624 | G22: 13.7
A24: 1) SR-Bank sin andel
A26: SpareBank 1 Boligkreditt AS bruker IRB metoden i sin kapitaldekningsrapportering.
A27: De øvrige selskaper bruker standardmetoden i sin kapitaldekningsrapportering.

Sheet 3
A2: Ansvarlig kapital i andre finansinstitusjoner
B4: Bokført verdi | C4: Bokført verdi
A5: Beløp i mill kroner | B5: 2012-12-31 | C5: 2011-12-31
A6: SR-Pensjonskasse | B6: 35 | C6: 35
A7: Sandnes Sparebank | B7: 48 | C7: 62
A8: Øvrige finansinstitusjoner | B8: 46 | C8: 45
A9: Sum | B9: =SUM(B6:B8) -> 129 | C9: =SUM(C6:C8) -> 142

Sheet 4
A1: Ansvarlig kapital
A3: Ansvarlig kapital, herunder kjernekapital og tilleggskapital samt aktuelle tillegg, fradrag og begrensninger
A5: Konsern (beløp i mill kroner) | B5: 2012-12-31 | C5: 2011-12-31
A6: Aksjekapital | B6: 6394 | C6: 3183
A7: - Egne aksjer | B7: -9 | C7: -3
A8: Overkursfond | B8: 1587 | C8: 625
A9: Avsatt utbytte | B9: 384 | C9: 299
A10: Fond for urealiserte gevinster | B10: 72 | C10: 43
A11: Annen egenkapital | B11: 4209 | C11: 1183
A12: Utjevningsfond | B12: 0 | C12: 1448
A13: Grunnfondskapital | B13: 0 | C13: 2631
A14: Kompensasjonsfond | B14: 0 | C14: 55
A15: Gavefond | B15: 0 | C15: 293
A16: Sum balanseført egenkapital | B16: =SUM(B6:B15) -> 12637 | C16: =SUM(C6:C15) -> 9757
A18: Kjernekapital
A19: Utsatt skatt, goodwill og andre immaterielle eiendeler | B19: -56 | C19: -71
A20: Fond for urealiserte gevinster tilgjengelig for salg | B20: -1 | C20: -2
A21: Fradrag for avsatt utbytte | B21: -384 | C21: -299
A22: 50 % fradrag ansvarlig kapital i andre finansinstitusjoner | B22: -17 | C22: -21
A23: 50 % fradrag i forventet tap IRB fratrukket tapsavsetninger | B23: -319 | C23: -255
A24: 50 % kapitaldekningsreserve | B24: -727 | C24: -665
A25: Fondsobligasjon 1) | B25: 2374 | C25: 2402
A26: Sum kjernekapital | B26: =SUM(B16:B25) -> 13507 | C26: =SUM(C16:C25) -> 10846
A28: Tilleggskapital utover kjernekapital
A29: Tidsbegrenset ansvarlig kapital | B29: 2124 | C29: 1776
A30: 50 % fradrag ansvarlig kapital i andre finansinstitusjoner | B30: -17 | C30: -21
A31: 50 % fradrag i forventet tap IRB fratrukket tapsavsetninger | B31: -319 | C31: -255
A32: 50 % kapitaldekningsreserve | B32: -727 | C32: -665
A33: Sum tilleggskapital | B33: =SUM(B29:B32) -> 1061 | C33: =SUM(C29:C32) -> 835
A35: Netto ansvarlig kapital | B35: =+B33+B26 -> 14568 | C35: =+C33+C26 -> 11681
A36: 1) Betingelser fremgår av tabellen "Ansvarlig lånekapital og Fondsobligasjon"
A38: Minimumskrav ansvarlig kapital | B38: 2012-12-31 | C38: 2011-12-31
A39: Kredittrisiko | B39: 7072 | C39: =6561-140 -> 6421
A40: Markedsrisiko | B40: 470 | C40: =337+140 -> 477
A41: Operasjonell risiko | B41: 447 | C41: 408
A42: Kapitalkrav knyttet til overgangsordninger | B42: 908 | C42: 861
A43: Minimumskrav ansvarlig kapital | B43: =B39+B40+B41+B42 -> 8897 | C43: =C39+C40+C41+C42 -> 8167
A45: Kapitaldekning | B45: 0.131 | C45: 0.1144
A46: Herav kjernekapital | B46: 0.1215 | C46: =(C26/C43)*0.08 -> 0.1062421942
A47: Herav tilleggskapital | B47: =+B45-B46 -> 0.0095 | C47: =+C45-C46 -> 0.008157805804
A48: Ren kjernekapitaldekning | B48: 0.1001 | C48: 0.0827
A51: Tidsbegrenset ansvarlig lånekapital får redusert egenkapitalverdien med 20 prosent hvert år de siste 5 årene før forfall.
A52: I den grad konsernet har ansvarlig kapital i andre finansinstitusjoner, går denne direkte til fradrag i konsernets
A53: egen ansvarlige kapital for den del som overstiger 2 prosent av mottakende finansinstitusjons ansvarlige kapital.
A55: Har konsernet ansvarlig kapital i andre finansinstitusjoner som utgjør mindre enn 2 prosent av den
A56: enkelte finansinstitusjons ansvarlige kapital, kommer summen av slik kapital til fradrag i konsernets
A57: ansvarlige kapital for den del som overstiger 10 prosent av konsernets ansvarlige kapital. Dersom
A58: konsernet har fått pålegg om 100 prosent kapitaldekningsreserve på bestemte eiendeler skal et beløp
A59: tilsvarende eiendelens bokførte verdi trekkes fra i den ansvarlige kapitalen og i beregningsgrunnlaget.
A60: Beregningsgrunnlaget vektes i henhold til risiko.

Sheet 5
A1: Minimumskravet til ansvarlig kapital for kredittrisiko fordelt på engasjementskategorier og underkategorier
C5: Engasjement | D5: Engasjement | E5: Minimumskrav til ansvarlig kapital | F5: Minimumskrav til ansvarlig kapital
D6: EAD | E6: Konsolidert | F6: Konsolidert
C7: 2012-12-31 | D7: 2012-12-31 | E7: 2012-12-31 | F7: 2011-12-31
A8: Foretak | B8: Spesialiserte foretak | C8: 33939 | D8: 31825 | E8: 2328 | F8: 2060
B9: Øvrige foretak | C9: 32418 | D9: 29496 | E9: 2346 | F9: 2104
A10: Massemarked | B10: Massemarked SMB | C10: 5276 | D10: 5268 | E10: 39 | F10: 37
B11: Engasjementer med pant i fast eiendom | C11: 105409 | D11: 105400 | E11: 796 | F11: 758
B12: Øvrige massemarkedsengasjementer | C12: 2088 | D12: 2083 | E12: 58 | F12: 78
A13: Minimumskrav kredittrisiko IRB | C13: =SUM(C8:C12) -> 179130 | D13: =SUM(D8:D12) -> 174072 | E13: =SUM(E8:E12) -> 5567 | F13: =SUM(F8:F12) -> 5037
A15: Stater | C15: 883 | E15: 3 | F15: 4
A16: Institusjoner | C16: 4185 | E16: 86 | F16: 69
A17: Foretak | C17: 2318 | E17: 166 | F17: 113
A18: Massemarked | C18: 812 | E18: 23 | F18: 19
A19: Konsoliderte selskaper | C19: 21675.217 | E19: 1187 | F19: 1193
A20: Øvrige eiendeler | C20: 1986.5 | E20: 158.92 | F20: 96
A21: Minimumskrav standardmetoden | C21: =SUM(C15:C20) -> 31859.717 | E21: =SUM(E15:E20) -> 1623.92 | F21: =SUM(F15:F20) -> 1494
A23: Fradrag | E23: -119 | F23: -110
A24: Samlet minimumskrav til ansvarlig kapital knyttet til kredittrisiko | E24: =E13+E21+E23 -> 7071.92 | F24: =F13+F21+F23 -> 6421

Sheet 6
A1: Minimumskrav til ansvarlig kapital for markedsrisiko, herunder posisjonsrisiko,
A2: motpartsrisiko, oppgjørsrisiko, valutarisiko og varerisiko
B7: Konsolidert 31.12.2012 | C7: Konsolidert 31.12.2011
A8: Posisjonsrisiko | B8: 350 | C8: 363
A9: - Herav egenkapitalinstrumenter | B9: 44 | C9: 47
A10: - Herav egenkapitalinstrumenter unntatt IRB | B10: 157 | C10: 140
A11: - Herav sertifikater og obligasjoner til virkelig verdi | B11: 103 | C11: 94
A12: - Herav sertifikater og obligasjoner til amortisert kost | B12: 46 | C12: 82
A13: Motpartsrisiko (derivater i handelsporteføljen) | B13: 120 | C13: 114
A14: - Herav derivater i handelsportefølje | B14: 56 | C14: 63
A15: - Herav derivater utenfor handelsportefølje | B15: 64 | C15: 51
A16: Valutarisiko | B16: 0 | C16: 0
A17: Sum | B17: =+B8+B13+B16 -> 470 | C17: =+C8+C13+C16 -> 477

Sheet 7
A1: Minimumskravet til ansvarlig kapital for operasjonell risiko etter sjablongmetoden
A2: (beløp i mill kroner)
D3: Eiendoms-megler 1
A4: 2012 | C4: Konsolidert | E4: SR-Finans | F4: SR-Forvaltning
A5: Banktjenester for massemarkedskunder | C5: 241 | D5: 44 | E5: 0 | F5: 6
A6: Banktjenester for bedriftskunder | C6: 182 | D6: 0 | E6: 27 | F6: 0
A7: Betaling og oppgjørstjenester | C7: 24 | D7: 0 | E7: 0 | F7: 0
A8: Totalt | C8: =SUM(C5:C7) -> 447 | D8: =SUM(D5:D7) -> 44 | E8: =SUM(E5:E7) -> 27 | F8: =SUM(F5:F7) -> 6
A10: 2011
A11: Banktjenester for massemarkedskunder | C11: 228 | D11: 36 | E11: 0 | F11: 7
A12: Banktjenester for bedriftskunder | C12: 171 | D12: 0 | E12: 26 | F12: 0
A13: Betaling og oppgjørstjenester | C13: 9 | D13: 0 | E13: 0 | F13: 0
A14: Totalt | C14: =SUM(C11:C13) -> 408 | D14: =SUM(D11:D13) -> 36 | E14: =SUM(E11:E13) -> 26 | F14: =SUM(F11:F13) -> 7
A20: Minimumskravet til ansvarlig kapital for operasjonell risiko er beregnet i prosent av snitt inntekt for hvert
A21: forretningsområde de 3 siste årene. Banktjenester for massemarkedet 12 %, banktjenester for bedriftsmarkedet 15 %
A22: og for øvrige tjenester 18 %.

Sheet 8
A1: Ansvarlig lånekapital og fondsobligasjon
E3: Første forfalls-
A4: Hovedstol | C4: Betingelser | D4: Forfall | E4: tidspunkt | F4: 2012 | G4: 2011
A6: Tidsbegrenset
A7: NOK 750 | C7: 3 mnd Libor + margin | D7: 2021 | E7: 2016 | F7: 744 | G7: 658
A8: JPY 13000 | C8: 3 mnd Libor + margin | D8: 2012 | E8: 2012 | F8: - | G8: 1014
A9: NOK 500 | C9: 3 mnd Nibor + margin | D9: 2018 | E9: 2013 | F9: 232 | G9: 469
A10: NOK450 | C10: 3 mnd Nibor + margin | D10: 2017 | E10: 2012 | F10: - | G10: 362
A11: NOK 75 | C11: 3 mnd Nibor + margin | D11: 2019 | E11: 2014 | F11: 82 | G11: 84
A12: NOK 825 | C12: 3 mnd Nibor + margin | D12: 2022 | E12: 2016 | F12: 825
A13: Sum tidsbegrenset | F13: =SUM(F7:F12) -> 1883 | G13: =SUM(G7:G11) -> 2587
A16: Fondsobligasjon
A17: NOK 1000 | C17: 3 mnd Nibor + margin | F17: 992 | G17: 992
A18: USD 75 | C18: 3 mnd Libor + margin | F18: 428 | G18: 485
A19: NOK 684 | C19: 3 mnd Nibor + margin | F19: 741 | G19: 719
A20: NOK 116 | C20: 3 mnd Nibor + margin | F20: 115 | G20: 115
A21: NOK 40 | C21: 3 mnd Nibor + margin | F21: 40 | G21: 40
A22: Sum fondsobligasjon | F22: =SUM(F17:F21) -> 2316 | G22: =SUM(G17:G21) -> 2351
A24: Påløpte renter | F24: 24 | G24: 37
A26: Sum ansvarlig lånekapital | F26: =+F24+F22+F13 -> 4223 | G26: =+G24+G22+G13 -> 4975
A28: Ansvarlig lånekapital og fondsobligasjon i utenlandsk valuta inngår i konsernets totale valutaposisjon slik at det ikke er valutarisiko knyttet til lånene.
A29: Av totalt 4 223 mill kroner i ansvarlig lånekapital teller 2 242 mill kroner som kjernekapital og 1 876 mill kroner som tidsbegrenset ansvarlig kapital.
A30: Aktiverte kostnader ved låneopptak blir reflektert i beregning av amortisert kost.
A31: Fondsobligasjoner kan maksimum utgjøre 15 prosent av samlet kjernekapital for obligasjoner med fastsatt løpetid og 35 prosent for fondsobligasjoner
A32: uten fastsatt løpetid. Eventuelt overskytende teller som evigvarende ansvarlig lånekapital.
A33: og 1 564 mill kroner som tidsbegrenset ansvarlig kapital. Aktiverte kostnader ved låneopptak blir
A34: reflektert i beregning av amortisert kost. Fondsobligasjoner kan maksimum utgjøre 15 prosent av samlet kjernekapital for
A35: obligasjoner med fastsatt løpetid og 35 prosent for fondsobligasjoner uten fastsatt løpetid.
A36: Eventuelt overskytende teller som evigvarende ansvarlig lånekapital.

Sheet 9
A1: Engasjementsbeløp for hver engasjementstype fordelt på geografiske områder før fradrag for nedskrivninger.
A2: (beløp i mill kroner)
A4: 2012 | B4: Brutto utlån | C4: Ubenyttet kreditt | D4: Garantier | E4: Sum
A5: Rogaland | B5: 76872 | C5: 8699 | D5: 9370 | E5: =SUM(B5:D5) -> 94941
A6: Agder-fylkene | B6: 9650 | C6: 1084 | D6: 1167 | E6: =SUM(B6:D6) -> 11901
A7: Hordaland | B7: 14029 | C7: 1576 | D7: 1697 | E7: 17302
A8: Øvrige | B8: 8962 | C8: 941 | D8: 1014 | E8: 10917
A9: Sum brutto engasjement kunder | B9: =SUM(B5:B8) -> 109513 | C9: =SUM(C5:C8) -> 12300 | D9: =SUM(D5:D8) -> 13248 | E9: =SUM(E5:E8) -> 135061
A11: 2011
A12: Rogaland | B12: 71256 | C12: 8121 | D12: 6942 | E12: =SUM(B12:D12) -> 86319
A13: Agder-fylkene | B13: 8872 | C13: 942 | D13: 800 | E13: =SUM(B13:D13) -> 10614
A14: Hordaland | B14: 12660 | C14: 1359 | D14: 1153 | E14: 15172
A15: Øvrige | B15: 8580 | C15: 1028 | D15: 873 | E15: 10481
A16: Sum brutto engasjement kunder | B16: =SUM(B12:B15) -> 101368 | C16: =SUM(C12:C15) -> 11450 | D16: =SUM(D12:D15) -> 9768 | E16: =SUM(E12:E15) -> 122586

Sheet 10
A1: Samlet engasjementsbeløp, definert som brutto utlån til kunder + garantier + ubenyttet kreditt i konsernet, etter eventuell nedskrivning og uten hensyn til eventuell sikkerhetsstillelse og engasjementenes gjennomsnittlige størrelse i løpet av perioden, oppdelt i engasjementstyper
A2: (beløp i mill kroner)
A4: 2012 | B4: Engasjementsbeløp | C4: Gjennomsnittlig engasjementsbeløp
A5: Foretak | B5: 78635 | C5: =(B5+B18)/2 -> 75136
A6: Massemarked | B6: 56426 | C6: =(B6+B19)/2 -> 53687.5
A7: Brutto engasjement kunder | B7: =SUM(B5:B6) -> 135061 | C7: =SUM(C5:C6) -> 128823.5
A8: Individuelle nedskrivninger | B8: -423 | C8: =(B8+B21)/2 -> -420.5
A9: Nedskrivning på grupper av utlån | B9: -332 | C9: =(B9+B22)/2 -> -347
A10: Nedskrivning garantier | B10: -1 | C10: =(B10+B23)/2 -> -1.5
A11: Netto engasjement kunder | B11: =SUM(B7:B10) -> 134305 | C11: =SUM(C7:C10) -> 128054.5
A13: Stater (Norges Bank) | B13: 1007 | C13: =(B13+B26)/2 -> 505
A14: Institusjoner | B14: 1087 | C14: =(B14+B27)/2 -> 905
A15: Sum engasjementsbeløp | B15: =SUM(B11:B14) -> 136399 | C15: =SUM(C11:C14) -> 129464.5
A17: 2011
A18: Foretak | B18: 71637 | C18: 68044.5
A19: Massemarked | B19: 50949 | C19: 56357
A20: Brutto engasjement kunder | B20: 122586 | C20: 124401.5
A21: Individuelle nedskrivninger | B21: -418 | C21: -410
A22: Nedskrivning på grupper av utlån | B22: -362 | C22: -359.5
A23: Nedskrivning garantier | B23: -2 | C23: -2.5
A24: Netto engasjement kunder | B24: 121804 | C24: 123629.5
A26: Stater (Norges Bank) | B26: 3 | C26: 513
A27: Institusjoner | B27: 723 | C27: 998
A28: Sum engasjementsbeløp | B28: 122530 | C28: 125140.5

Sheet 11
A1: Engasjementsbeløp for hver engasjementstype fordelt på bransjer før fradrag for nedskrivninger
A2: (beløp i mill kroner) | C2: 2012 | F2: 2011
C3: Brutto utlån | D3: Ubenyttet kreditt og garantier | E3: Sum | F3: Brutto utlån | G3: Ubenyttet kreditt og garantier | H3: Sum
A4: Jordbruk/skogbruk | C4: 4141 | D4: 1659 | E4: =+C4+D4 -> 5800 | F4: 3773 | G4: 729.3515464 | H4: =SUM(F4:G4) -> 4502.351546
A5: Fiske/fiskeoppdrett | C5: 597 | D5: 204 | E5: =+C5+D5 -> 801 | F5: 416 | G5: 198.743856 | H5: =SUM(F5:G5) -> 614.743856
A6: Bergverksdrift/utvinning | C6: 2351 | D6: 977 | E6: 3328 | F6: 2728 | G6: 81.07503768 | H6: 2809.075038
A7: Industri | C7: 2135 | D7: 597 | E7: 2732 | F7: 1686 | G7: 1223.656142 | H7: 2909.656142
A8: Kraft og vannforsyning/bygg og anlegg | C8: 3804 | D8: 1260 | E8: 5064 | F8: 4022 | G8: 2518.039976 | H8: 6540.039976
A9: Varehandel, hotell og restaurantvirksomhet | C9: 2975 | D9: 1052 | E9: 4027 | F9: 2487 | G9: 1085.894748 | H9: 3572.894748
A10: Utenriks sjøfart, rørtransport, øvrig transport | C10: 6451 | D10: 2527 | E10: 8978 | F10: 6553 | G10: 4481.475725 | H10: 11034.47572
A11: Eiendomsdrift | C11: 24306 | D11: 10302 | E11: 34608 | F11: 23749 | G11: 3111.382097 | H11: 26860.3821
A12: Tjenesteytende virksomhet | C12: 7650 | D12: 2671 | E12: 10321 | F12: 6827 | G12: 2375.773328 | H12: 9202.773328
A13: Offentlig forvaltning og finansielle tjenester | C13: 1948.5 | D13: 1027.45 | E13: 2975.95 | F13: 1068 | G13: 2522.852063 | H13: 3590.852063
A14: Ufordelt ( merverdi fastrente utlån) | C14: =292+293 -> 585 | D14: -585 | E14: 0 | F14: 466 | G14: -466 | H14: 0
A15: Sum foretak | C15: =SUM(C4:C14) -> 56943.5 | D15: 21691.45 | E15: 78634.95 | F15: 53775 | G15: 17862.24452 | H15: 71637.24452
A16: Massemarked | C16: 52569 | D16: 3857 | E16: 56426 | F16: 47593 | G16: 3355.755482 | H16: 50948.75548
A17: Sum brutto engasjement kunder | C17: =SUM(C15:C16) -> 109512.5 | D17: =+D15+D16 -> 25548.45 | E17: =+E15+E16 -> 135060.95 | F17: 101368 | G17: 21218 | H17: 122586

Sheet 12
A1: Engasjementsbeløp for hver engasjementstype fordelt etter gjenstående løpetid
A2: (beløp i mill kroner)
A4: 2012 | B4: På forespørsel | C4: <1 år | D4: 1-5 år | E4: over 5 år | F4: Sum
A5: Brutto utlån | B5: 33309 | C5: 4708 | D5: 18200 | E5: 53296 | F5: =SUM(B5:E5) -> 109513
A6: Ubenyttet kreditt | B6: 12300 | F6: =SUM(B6:E6) -> 12300
A7: Garantier | C7: 10020 | D7: 1561 | E7: 1667 | F7: =SUM(B7:E7) -> 13248
A8: Sum brutto engasjement kunder | B8: =SUM(B5:B7) -> 45609 | C8: =SUM(C5:C7) -> 14728 | D8: =SUM(D5:D7) -> 19761 | E8: =SUM(E5:E7) -> 54963 | F8: =SUM(F5:F7) -> 135061
A10: Stater (Norges Bank) | B10: 1007 | C10: - | D10: - | E10: - | F10: =SUM(B10:E10) -> 1007
A11: Institusjoner | B11: 1087 | C11: - | D11: - | E11: - | F11: 1087
A13: 2011
A14: Brutto utlån | B14: 33216 | C14: 3871 | D14: 15161 | E14: 49120 | F14: 101368
A15: Ubenyttet kreditt | B15: 11450 | F15: =+B15 -> 11450
A16: Garantier | C16: 7096 | D16: 859 | E16: 1813 | F16: =+C16+D16+E16 -> 9768
A17: Sum brutto engasjement kunder | B17: =SUM(B14:B16) -> 44666 | C17: =SUM(C14:C16) -> 10967 | D17: =SUM(D14:D16) -> 16020 | E17: =SUM(E14:E16) -> 50933 | F17: =SUM(F14:F16) -> 122586
A19: Stater (Norges Bank) | B19: 3 | C19: - | D19: - | E19: - | F19: =SUM(B19:E19) -> 3
A20: Institusjoner | B20: 723 | C20: - | D20: - | E20: - | F20: 723

Sheet 13
A1: Misligholdte og tapsutsatte engasjement fordelt på kundegrupper
A3: 2012 | B3: Samlet engasjementsbeløp
A4: Beløp i mill kroner | B4: Tapsutsatte | C4: Misligholdte | D4: Individuelle nedskrivninger | E4: Resultatførte verdiendringer i løpet av perioden
A5: Jordbruk/skogbruk | B5: 7 | C5: 8 | D5: 6 | E5: 1
A6: Fiske/fiskeoppdrett | B6: 0 | C6: 0 | D6: 0 | E6: 0
A7: Bergverksdrift/utvinning | B7: 0 | C7: 0 | D7: 7 | E7: -1
A8: Industri | B8: 59 | C8: 3 | D8: 21 | E8: -2
A9: Kraft og vannforsyning/bygg og anlegg | B9: 27 | C9: 13 | D9: 20 | E9: 9
A10: Varehandel, hotell og restaurantvirksomhet | B10: 50 | C10: 13 | D10: 22 | E10: 11
A11: Utenriks sjøfart, rørtransport, øvrig transport | B11: 59 | C11: 30 | D11: 58 | E11: 1
A12: Eiendomsdrift | B12: 227 | C12: 161 | D12: 122 | E12: 42
A13: Tjenesteytende virksomhet | B13: 202 | C13: 13 | D13: 77 | E13: 103
A14: Offentlig forvaltning og finansielle tjenester | B14: 0 | C14: 0 | D14: 0 | E14: 0
A15: Sum foretak | B15: =SUM(B5:B14) -> 631 | C15: =SUM(C5:C14) -> 241 | D15: =SUM(D5:D14) -> 333 | E15: =SUM(E5:E14) -> 164
A16: Overført fra nedskrivning på grupper av utlån | E16: -30
A17: Massemarked | B17: 156 | C17: 219 | D17: 90 | E17: 3
A18: Sum | B18: =+B17+B15 -> 787 | C18: =+C17+C15 -> 460 | D18: =+D17+D15 -> 423 | E18: =SUM(E15:E17) -> 137
A22: 2011
A24: Beløp i mill kroner
A25: Jordbruk/skogbruk | B25: 17 | C25: 9 | D25: 10 | E25: -1
A26: Fiske/fiskeoppdrett | B26: 0 | C26: 0 | D26: 0 | E26: -1
A27: Bergverksdrift/utvinning | B27: 11 | C27: 0 | D27: 8 | E27: 0
A28: Industri | B28: 70 | C28: 6 | D28: 31 | E28: 4
A29: Kraft og vannforsyning/bygg og anlegg | B29: 42 | C29: 26 | D29: 21 | E29: 6
A30: Varehandel, hotell og restaurantvirksomhet | B30: 26 | C30: 6 | D30: 19 | E30: 4
A31: Utenriks sjøfart, rørtransport, øvrig transport | B31: 105 | C31: 38 | D31: 50 | E31: 15
A32: Eiendomsdrift | B32: 224 | C32: 123 | D32: 128 | E32: 30
A33: Tjenesteytende virksomhet | B33: 64 | C33: 30 | D33: 57 | E33: 31
A34: Offentlig forvaltning og finansielle tjenester | B34: 0 | C34: 0 | D34: 0 | E34: 0
A35: Sum foretak | B35: =SUM(B25:B34) -> 559 | C35: =SUM(C25:C34) -> 238 | D35: =SUM(D25:D34) -> 324 | E35: =SUM(E25:E34) -> 88
A36: Overført fra nedskrivning på grupper av utlån | E36: 5
A37: Massemarked | B37: 137 | C37: 177 | D37: 96 | E37: 46
A38: Sum | B38: =+B37+B35 -> 696 | C38: =+C37+C35 -> 415 | D38: =+D37+D35 -> 420 | E38: =SUM(E35:E37) -> 139

Sheet 14
A1: Faktiske tap pr. misligholdsklasse i perioden
A2: (beløp i mill kroner)
D4: 2012 | E4: 2011
A5: A (0,00-0,10 %) | D5: 0 | E5: 0
A6: B (0,10-0,25 %) | D6: 0 | E6: 0
A7: C (0,25-0,50 %) | D7: 0 | E7: 0
A8: D (0,50-0,75 %) | D8: 0 | E8: 0
A9: E (0,75-1,25 %) | D9: 0 | E9: 0
A10: F (1,25-2,50 %) | D10: 0 | E10: 0
A11: G (2,50-5,00 %) | D11: 0 | E11: 0
A12: H (5,00-10,00 %) | D12: 0 | E12: 0
A13: I (10,00 - ) | D13: 0 | E13: 0
A14: J | D14: 0 | E14: 0
A15: K | D15: 137 | E15: 139
A16: Sum | D16: =SUM(D5:D15) -> 137 | E16: =SUM(E5:E15) -> 139

Sheet 15
A1: Separat angivelse av de samlede engasjementsbeløp med verdifall og misligholdte engasjementer fordelt på geografiske områder, herunder samlede verdiendringer
A3: og nedskrivninger:
A4: (beløp i mill kroner)
B5: Samlet engasjementsbeløp | D5: Individuelle nedskrivninger
A6: 2012 | B6: Tapsutsatte | C6: Misligholdte
A7: Rogaland | B7: 437 | C7: 194 | D7: 276
A8: Agder-fylkene | B8: 124 | C8: 120 | D8: 76
A9: Hordaland | B9: 150 | C9: 115 | D9: 51
A10: Øvrige | B10: 76 | C10: 31 | D10: 20
A11: Sum | B11: =SUM(B7:B10) -> 787 | C11: =SUM(C7:C10) -> 460 | D11: =SUM(D7:D10) -> 423
A13: 2011
A14: Rogaland | B14: 341.8280721 | C14: 170.3527765 | D14: 228.651151
A15: Agder-fylkene | B15: 202.7189332 | C15: 118.125575 | D15: 116.2351609
A16: Hordaland | B16: 146.2716489 | C16: 94.22680561 | D16: 70.67785917
A17: Øvrige | B17: 5.181345858 | C17: 32.29484288 | D17: 4.435828995
A18: Sum | B18: =SUM(B14:B17) -> 696 | C18: =SUM(C14:C17) -> 415 | D18: =SUM(D14:D17) -> 420

Sheet 16
A1: Avstemming av endringer i henholdsvis verdiendringer og nedskrivinger for engasjementer med verdifall
A2: (beløp i mill kroner)
A3: 2012 | B3: Inngående balanse | C3: Beløp ført mot nedskrivninger | D3: Beløp som avsettes til eller tilbakeføres fra anslått tap | E3: Utgående balanse
A4: Individuelle nedskrivninger | B4: 418 | C4: 194 | D4: 199 | E4: =+B4-C4+D4 -> 423
A5: Nedskrivninger på grupper av utlån | B5: 362 | D5: -30 | E5: =SUM(B5:D5) -> 332
A6: Spesifierte tapsavsetninger garantier | B6: 2 | D6: -1 | E6: 1
A7: Sum | B7: =SUM(B4:B6) -> 782 | C7: =SUM(C4:C6) -> 194 | D7: =SUM(D4:D6) -> 168 | E7: =SUM(E4:E6) -> 756
A10: 2011
A11: Individuelle nedskrivninger | B11: 402 | C11: 174 | D11: 190 | E11: =+B11-C11+D11 -> 418
A12: Nedskrivninger på grupper av utlån | B12: 357 | D12: 5 | E12: =SUM(B12:D12) -> 362
A13: Spesifierte tapsavsetninger garantier | B13: 3 | D13: -1 | E13: 2
A14: Sum | B14: =SUM(B11:B13) -> 762 | C14: =SUM(C11:C13) -> 174 | D14: =SUM(D11:D13) -> 194 | E14: =SUM(E11:E13) -> 782

Sheet 17
A1: Fordeling på risikoklasser der IRB-metoden benyttes
A4: 2012 Engasjementskategori | B4: Misligholds- klasse | C4: Samlet EAD | D4: Samlet ubenyttet ramme | E4: Gjennom-snittlig risikovekt | F4: Gjennom- snittlig tap gitt mislighold | G4: Gjennom- snittlig konverterings- faktor
A5: Foretak | B5: A | C5: 69.033803 | D5: 19.29488356 | E5: 0.2890856036 | F5: 0.45 | G5: 0.9899629655
B6: B | C6: 1018.71842 | D6: 482.5120482 | E6: 0.409430148 | F6: 0.45 | G6: 0.8761028237
B7: C | C7: 7930.713638 | D7: 3330.102747 | E7: 0.5833944881 | F7: 0.45 | G7: 0.8781287415
B8: D | C8: 10945.48641 | D8: 3168.142856 | E8: 0.6849788681 | F8: 0.45 | G8: 0.9121827942
B9: E | C9: 6055.62565 | D9: 1102.611361 | E9: 0.7781462981 | F9: 0.45 | G9: 0.945726132
B10: F | C10: 14707.69797 | D10: 3874.177772 | E10: 1.005039484 | F10: 0.45 | G10: 0.9200119672
B11: G | C11: 14458.44739 | D11: 2348.003873 | E11: 1.180158607 | F11: 0.45 | G11: 0.9486900684
B12: H | C12: 2351.352781 | D12: 489.8069374 | E12: 1.641403467 | F12: 0.45 | G12: 0.9351128433
B13: I | C13: 2933.650552 | D13: 380.2958529 | E13: 1.856960254 | F13: 0.45 | G13: 0.9586980615
B14: J | C14: 160.9607816 | D14: 11.71854674 | E14: 0 | F14: 0.45 | G14: 0.9766831473
B15: K | C15: 689.9015681 | D15: 17.83485745 | E15: 0 | F15: 0.45 | G15: 0.9915481423
A16: Sum Foretak | C16: =SUM(C5:C15) -> 61321.58896 | D16: =SUM(D5:D15) -> 15224.50173 | E16: 0.9527744678 | G16: 0.9243234782
A17: Engasjementer med pant i fast eiendom | B17: A | C17: 12345.87606 | D17: 3247.090517 | E17: 0.0159765281 | F17: 0.09261762305 | G17: 0.9998751753
B18: B | C18: 11357.70643 | D18: 1119.31351 | E18: 0.04306838634 | F18: 0.09553140549 | G18: 0.999839342
B19: C | C19: 32449.33183 | D19: 2563.579749 | E19: 0.0656533775 | F19: 0.09989844429 | G19: 0.9999002378
B20: D | C20: 18431.6846 | D20: 1015.5987 | E20: 0.09570527579 | F20: 0.1007009706 | G20: 0.9999623263
B21: E | C21: 21272.29065 | D21: 916.1658921 | E21: 0.1317163835 | F21: 0.1019122394 | G21: 0.9999457187
B22: F | C22: 6568.727205 | D22: 168.8522633 | E22: 0.1989824751 | F22: 0.1096226987 | G22: 0.9999722557
B23: G | C23: 1032.621477 | D23: 23.4922184 | E23: 0.2995001739 | F23: 0.1055596309 | G23: 0.9999884954
B24: H | C24: 843.3104801 | D24: 16.69968913 | E24: 0.4510915287 | F24: 0.1078541476 | G24: 0.9999549415
B25: I | C25: 901.759559 | D25: 7.199143396 | E25: 0.6153169174 | F25: 0.1123417 | G25: 0.9998129009
B26: J | C26: 90.7699268 | D26: 2.332982856 | E26: 0.01873299869 | F26: 0.09535954312 | G26: 0.9993751836
B27: K | C27: 105.5918843 | D27: 0.0191821992 | E27: 0.1172580951 | F27: 0.2584692021 | G27: 1
A28: Sum massemarked eiendom | C28: =SUM(C17:C27) -> 105399.6701 | D28: =SUM(D17:D27) -> 9080.343848 | E28: 0.09438759277 | F28: 0.1001 | G28: 0.9999154661
A29: Øvrig massemarked | B29: A | C29: 909.2999206 | D29: 374.8947427 | E29: 0.03368502077 | F29: 0.1772190596 | G29: 0.997461963
B30: B | C30: 2107.634446 | D30: 421.4116472 | E30: 0.0559868812 | F30: 0.1406329842 | G30: 0.9976616013
B31: C | C31: 1925.652615 | D31: 201.8192484 | E31: 0.1516459346 | F31: 0.2414258335 | G31: 0.9981296762
B32: D | C32: 830.4065311 | D32: 62.80454673 | E32: 0.2373409325 | F32: 0.2725447924 | G32: 0.9990830694
B33: E | C33: 787.1718177 | D33: 41.57481128 | E33: 0.3103064951 | F33: 0.2810584119 | G33: 0.9991394467
B34: F | C34: 333.0992157 | D34: 14.49631328 | E34: 0.3478417842 | F34: 0.2398630299 | G34: 0.9986068303
B35: G | C35: 146.2074386 | D35: 5.316594243 | E35: 0.4242256252 | F35: 0.2109456738 | G35: 0.9993557848
B36: H | C36: 103.1855153 | D36: 2.025963953 | E36: 0.5747081327 | F36: 0.2421560151 | G36: 0.9981015124
B37: I | C37: 121.2042457 | D37: 2.627521034 | E37: 0.7510458788 | F37: 0.2622147178 | G37: 0.9966204917
B38: J | C38: 8.353213428 | D38: 0.10643328 | E38: 0.004353079982 | F38: 0.3601984502 | G38: 0.9977635391
B39: K | C39: 78.83925901 | D39: 0.09657594 | E39: 0.08225930748 | F39: 0.7409058561 | G39: 0.1731851384
A40: Sum øvrig massemarked | C40: =SUM(C29:C39) -> 7351.054218 | D40: =SUM(D29:D39) -> 1127.174398 | E40: 0.1655197888 | F40: 0.2175265791 | G40: 0.9981663708
A44: 2011 Engasjementskategori | B44: Misligholds- klasse | C44: Samlet EAD | D44: Samlet ubenyttet ramme | E44: Gjennom-snittlig risikovekt | F44: Gjennom- snittlig tap gitt mislighold | G44: Gjennom- snittlig konverterings- faktor
A45: Foretak | B45: A | C45: 42 | D45: 14 | E45: 0.2945426253 | F45: 0.45 | G45: 0.9860261424
B46: B | C46: 795 | D46: 334 | E46: 0.421194924 | F46: 0.45 | G46: 0.8878479047
B47: C | C47: 6554 | D47: 2484 | E47: 0.5785874092 | F47: 0.45 | G47: 0.8884403781
B48: D | C48: 9767 | D48: 2710 | E48: 0.6714800016 | F48: 0.45 | G48: 0.9164050408
B49: E | C49: 6980 | D49: 1209 | E49: 0.8000620532 | F49: 0.45 | G49: 0.9461677661
B50: F | C50: 13381 | D50: 2649 | E50: 0.9600598256 | F50: 0.45 | G50: 0.9390006153
B51: G | C51: 12207 | D51: 1700 | E51: 1.161462796 | F51: 0.45 | G51: 0.9562021529
B52: H | C52: 1134 | D52: 223 | E52: 1.522096289 | F52: 0.45 | G52: 0.9388598749
B53: I | C53: 3992 | D53: 375 | E53: 1.758889226 | F53: 0.45 | G53: 0.969952973
B54: J | C54: 58 | D54: 15 | E54: 0 | F54: 0.45 | G54: 0.9249166093
B55: K | C55: 572 | D55: 21 | E55: 0 | F55: 0.45 | G55: 0.9881968595
A56: Sum Foretak | C56: =SUM(C45:C55) -> 55482 | D56: =SUM(D45:D55) -> 11734 | E56: 0.938200043 | G56: 0.9350199115
A57: Engasjementer med pant i fast eiendom | B57: A | C57: 9285.107109 | D57: 2561.407262 | E57: 0.01581403405 | F57: 0.09017187015 | G57: 0.9996885188
B58: B | C58: 9377.313599 | D58: 1053.308489 | E58: 0.044665244 | F58: 0.09773629342 | G58: 0.9999188613
B59: C | C59: 27972.79411 | D59: 2461.860027 | E59: 0.06402989251 | F59: 0.09720106911 | G59: 0.9999143384
B60: D | C60: 17034.69308 | D60: 1078.988439 | E60: 0.0965282434 | F60: 0.1010398689 | G60: 0.999925609
B61: E | C61: 22035.23802 | D61: 1086.035256 | E61: 0.1364391434 | F61: 0.1052738578 | G61: 0.9999401639
B62: F | C62: 6851.484372 | D62: 180.2210145 | E62: 0.1959414818 | F62: 0.1081790978 | G62: 0.9999604571
B63: G | C63: 915.0906959 | D63: 22.34066542 | E63: 0.303496693 | F63: 0.1087359825 | G63: 0.9998656052
B64: H | C64: 763.1139313 | D64: 11.23270687 | E64: 0.4287485611 | F64: 0.1031119472 | G64: 0.9999361211
B65: I | C65: 788.9023696 | D65: 11.7053202 | E65: 0.6118982761 | F65: 0.110611237 | G65: 0.9998461837
B66: J | C66: 85.02531915 | D66: 1.389565866 | E66: 0.06 | F66: 0.1021731226 | G66: 0.9988986017
B67: K | C67: 120.6718491 | D67: 0 | E67: 0.2264819856 | F67: 0.2065695808 | G67: 1
A68: Sum massemarked eiendom | C68: =SUM(C57:C67) -> 95229.43445 | D68: =SUM(D57:D67) -> 8468.488745 | E68: 0.09945945383 | F68: 0.1003 | G68: 0.9999024129
A69: Øvrig massemarked | B69: A | C69: 781.6607198 | D69: 307.3954061 | E69: 0.03934187714 | F69: 0.2050523767 | G69: 0.9972231714
B70: B | C70: 2069.567598 | D70: 426.0315549 | E70: 0.05466987409 | F70: 0.1359037088 | G70: 0.99892801
B71: C | C71: 2026.700247 | D71: 197.0518993 | E71: 0.173988729 | F71: 0.2742054067 | G71: 0.9984794366
B72: D | C72: 840.8450883 | D72: 60.27262374 | E72: 0.2760306307 | F72: 0.3191919763 | G72: 0.9988885495
B73: E | C73: 887.5877732 | D73: 56.65925798 | E73: 0.3513072278 | F73: 0.322143876 | G73: 0.9989065858
B74: F | C74: 464.6646355 | D74: 19.93552351 | E74: 0.4171653816 | F74: 0.3013337082 | G74: 0.9985823085
B75: G | C75: 171.201459 | D75: 3.488123306 | E75: 0.4053937414 | F75: 0.1958443213 | G75: 0.9991684391
B76: H | C76: 100.4901544 | D76: 1.598874536 | E76: 0.5188169957 | F76: 0.2302295841 | G76: 0.9982108976
B77: I | C77: 99.79115519 | D77: 2.03198341 | E77: 0.7833846293 | F77: 0.263297546 | G77: 0.9978988862
B78: J | C78: 8.374528092 | D78: 0.0405338 | E78: 0.002627013697 | F78: 0.5040148202 | G78: 1
B79: K | C79: 77.03651696 | D79: 0.35845154 | E79: 0.1409591247 | F79: 0.4601325769 | G79: 0.9997502419
A80: Sum øvrig massemarked | C80: =SUM(C69:C79) -> 7527.919875 | D80: =SUM(D69:D79) -> 1074.864232 | E80: 0.1913473716 | F80: 0.2410186498 | G80: 0.9985926923

Sheet 18
A1: IRB Misligholdsnivå -PD
A5: Portefølje | B5: Estimert mislighold | C5: Faktisk mislighold 2010 - 2011 | D5: Estimert mislighold | E5: Faktisk mislighold
B6: 2010 - 2011 | D6: 2006 - 2011 | E6: 2006-2011
A7: Massemarked med pant i fast eiendom | B7: 0.0093 | C7: 0.0029 | D7: 0.0091 | E7: 0.0034
A8: Øvrig massemarked | B8: 0.0369 | C8: 0.0191 | D8: 0.0339 | E8: 0.0226
A9: Foretak | B9: 0.0374 | C9: 0.024 | D9: 0.0298 | E9: 0.0224

Sheet 19
A1: Tapsgrad for misligholdte lån - LGD
A5: Portefølje | B5: Estimert tapsgrad | D5: Faktisk tapsgrad
A6: Massemarked med pant i fast eiendom | B6: 0.1 | D6: 0.034
A7: Øvrig massemarked | B7: 0.155 | D7: 0.107
A8: Foretak | B8: 0.45 | D8: 0.28

Sheet 20
A1: Samlet engasjementsbeløp og andelen som er sikret med pant, fordelt på engasjementskategorier (IRB)
C4: 2012 | F4: 2011
A5: Engasjementskategori | C5: Engasjementsbeløp | D5: Herav sikret med pant i fast eiendom 1) | F5: Engasjementsbeløp | G5: Herav sikret med pant i fast eiendom 1)
A6: Massemarked
A7: Engasjementer med pant i fast eiendom | C7: 105409 | D7: 0.95 | F7: 95239 | G7: 0.94
A8: Massemarked SMB | C8: 5276 | D8: 0.89 | F8: 4959 | G8: 0.87
A9: Øvrige massemarkedsengasjementer | C9: 2088 | D9: 0.03 | F9: 2579 | G9: 0.03 | H9: 2)
A10: Sum | C10: =SUM(C7:C9) -> 112773 | F10: =SUM(F7:F9) -> 102777
A13: 1) Andel er totalt engasjement med slik sikkerhetsstillelse i forhold til totalt engasjement for gjeldende engasjementskategori
A14: 2) Et engasjement på en massemarkedskunde der realisasjonsverdi av boligen vurderes lavere enn 30 % av kundens engasjement
A15: kategoriseres ikke som engasjement med fast eiendom, men som øvrig massemarked.
A17: SpareBank 1 SR-Bank har ingen sikkerhetsstillelser som medfører redusert engasjementsbeløp. For foretak hensyntas ikke
A18: sikkerhetsstillelse i LGD beregningen. Her benyttes myndighetsfastsatte LGD-faktorer. Av den grunn fremgår ingen opplisting
A19: av slike engasjementer i ovenstående tabell.

Sheet 21
A1: De faktiske verdiendringene for den enkelte engasjementskategori og utvikling fra tidligere perioder (IRB)
A3: Beløp i mill kroner | C3: Verdi 31.12.2012 | D3: Verdiendring i 2012 (i %) | E3: Verdi 31.12.2011 | F3: Verdiendring i 2011 (i %) | G3: Verdi 31.12.2010 | H3: Verdiendring i 2010 (i %) | I3: Verdi 31.12.2009
A4: Massemarkedsengasjementer | C4: 112773 | D4: 0.09725911439 | E4: 102777 | F4: 0.1179189871 | G4: 91936 | H4: 0.1379203644 | I4: 80793
A5: -herav massemarked SMB | C5: 5276 | D5: 0.06392417826 | E5: 4959 | F5: 0.1211847163 | G5: 4423 | H5: 0.09021444417 | I5: 4057
A6: -herav engasjementer med pant i fast eiendom | C6: 105409 | D6: 0.1067839856 | E6: 95239 | F6: 0.1211183049 | G6: 84950 | H6: 0.1486559576 | I6: 73956
A7: -herav øvrige massemarkedsengasjementer | C7: 2088 | D7: -0.1903838697 | E7: 2579 | F7: 0.006242684354 | G7: 2563 | H7: -0.07805755396 | I7: 2780
A8: Spesialiserte foretak | C8: 33939 | D8: 0.161697758 | E8: 29215 | F8: 0.09076314217 | G8: 26784 | H8: 0.01014520083 | I8: 26515
A9: Øvrige foretak | C9: 32418 | D9: 0.0751882193 | E9: 30151 | F9: 0.07612963095 | G9: 28018 | H9: 0.1839425312 | I9: 23665
A10: Sum | C10: 179130 | D10: 0.1047655465 | E10: 162143 | F10: 0.104983031 | G10: 146738 | H10: 0.1203683202 | I10: 130973

Sheet 22
A1: Investeringer (egenkapitalposisjoner utenfor handelsportefølje) fordelt etter formål.
B4: Investeringer | C4: 2012-12-31 | D4: 2011-12-31
A5: Finansielle investeringer til virkelig verdi over resultat | B5: Progressus | C5: 16 | D5: 16
B6: Borea Opportunity II | C6: 14 | D6: 10
B7: Hitec Vision Private Equity IV LP | C7: 40 | D7: 31
B8: HitecVision Asset Solution LP | C8: 19 | D8: 10
B9: OptiMarin | C9: 20 | D9: 20
B10: Øvrige finansielle investeringer | C10: 64 | D10: 52
A12: Sum finansielle investeringer til virkelig verdi over resultatet | C12: =SUM(C5:C11) -> 173 | D12: =SUM(D5:D11) -> 139
A13: Strategiske investeringer til virkelig verdi over resultat | B13: Nordito Property | C13: 19 | D13: 12
B14: Nets Holding | C14: 286 | D14: 263
A15: Sum strategiske investeringer til virkelig verdi over resultat | C15: =SUM(C13:C14) -> 305 | D15: =D13+D14 -> 275
A16: Strategiske investeringer til tilgjengelig for salg | B16: Øvrige strategiske investeringer | C16: 3 | D16: 4
A17: Sum | C17: =+C12+C15+C16 -> 481 | D17: =+D12+D15+D16 -> 418
A19: Aksjer og andeler klassifiseres som enten til virkelig verdi over resultatet eller tilgjengelig for salg. Endring i virkelig verdi fra inngående balanse resultatføres som inntekt fra finansielle investeringer.

Sheet 23
A1: Oversikt over bokført verdi og virkelig verdi, gevinster og tap
A2: (beløp i mill kroner)
A4: 2012 | B4: Bokført verdi | C4: Virkelig verdi | D4: Samlede realiserte gevinster eller tap i 2012 | E4: Urealiserte gevinster eller tap i 2012 | F4: Beløp medregnet i kjernekapital eller tilleggskapital
A5: Finansielle investeringer til virkelig verdi over resultat | B5: 173 | C5: 173 | D5: 3 | E5: 15 | F5: 0
A6: Strategiske investeringer til virkelig verdi over resultat | B6: 305 | C6: 305 | D6: 0 | E6: 30 | F6: 0
A7: Strategiske investeringer tilgjengelig for salg | B7: 3 | C7: 3 | D7: 0 | E7: 0 | F7: 1
A8: Sum | B8: =SUM(B5:B7) -> 481 | C8: =SUM(C5:C7) -> 481 | D8: =SUM(D5:D7) -> 3 | E8: =SUM(E5:E7) -> 45 | F8: =SUM(F5:F7) -> 1
A10: 2011
A11: Finansielle investeringer til virkelig verdi over resultat | B11: 139 | C11: 139 | D11: 9 | E11: 14 | F11: 0
A12: Strategiske investeringer til virkelig verdi over resultat | B12: 275 | C12: 275 | D12: 0 | E12: 0 | F12: 0
A13: Strategiske investeringer tilgjengelig for salg | B13: 4 | C13: 4 | D13: 0 | E13: 0 | F13: 1
A14: Sum | B14: =SUM(B11:B13) -> 418 | C14: =SUM(C11:C13) -> 418 | D14: =SUM(D11:D13) -> 9 | E14: =SUM(E11:E13) -> 14 | F14: =SUM(F11:F13) -> 1

Sheet 24
A1: Oversikt over type og verdi av børsnoterte aksjer, unoterte aksjer i diversifiserte porteføljer og andre engasjementer
A3: Beløp i mill kroner | B3: Verdi 2012 | C3: Verdi 2011
A4: Unotert | B4: 478 | C4: 412
A5: Omsatt på børs | B5: 0 | C5: 2
A6: Øvrige | B6: 3 | C6: 4
A7: Sum | B7: =SUM(B4:B6) -> 481 | C7: =SUM(C4:C6) -> 418

Sheet 25
A1: Oversikt over motpartsrisiko for derivater mv. utenfor handelsporteføljen
A3: Beløp i mill kroner | C3: Nominell verdi | D3: Kreditt ekvivalent | E3: Vektet beløp | F3: Minimumskrav til ansvarlig kapital 20121) | G3: Minimumskrav til ansvarlig kapital 20111)
A5: Rente og valutainstrumenter i handelsportefølje | C5: 40059 | D5: 993 | E5: 704 | F5: 56.32 | G5: 63
A6: Rente og valutainstrumenter i sikring | C6: 11468 | D6: 2092 | E6: 418 | F6: 33.44 | G6: 51
A7: Kredittderivater | C7: 0 | D7: 0 | E7: 0 | F7: 0 | G7: 0
A8: Sum finansielle derivater | C8: =SUM(C5:C7) -> 51527 | D8: =SUM(D5:D7) -> 3085 | E8: =SUM(E5:E7) -> 1122 | F8: =SUM(F5:F7) -> 89.76 | G8: =SUM(G5:G7) -> 114
A11: 1) Minimumskravet til ansvarlig kapital beregnes i sin helhet etter standardmetoden.

Sheet 26
A1: Sensitivitet på netto rentekost før skatt (renteendring på ett prosentpoeng) ved utgangen av 2012
A3: Sensitivitet på netto rentekost | B3: 2012-12-31 | C3: 2011-12-31
A4: Valuta
A5: NOK | B5: 6 | C5: -2
A6: EUR | B6: 5 | C6: 1
A7: USD | B7: -4 | C7: -13
A8: CHF | B8: 0 | C8: -2
A9: Øvrige | B9: 0 | C9: -1
A11: Renterisiko oppstår ved at konsernet kan ha ulik rentebindingstid på sine eiendeler og forpliktelser.
A12: Handelsaktivitetene knyttet til omsetning av renteinstrumenter skal til enhver tid skje innenfor vedtatte rammer og fullmakter.
A13: Konsernets rammer definerer kvantitative mål for maksimalt potensielt tap. Den kommersielle risikoen kvantifiseres og overvåkes kontinuerlig.
A15: Konsernets overordnede rammer for renterisiko definerer maksimalt tap ved renteendring på ett prosentpoeng.
A16: Maksimum tap ved renteendring på 1 prosent er totalt 75 mill kroner fordelt på 30 mill kroner og 45 mill kroner på totalbalansen for henholdsvis Trading og Treasury.
